bitfinex/quotes_BTCUSD_20240627
["timestamp","ask_amount","ask_price","bid_price","bid_amount"]
[1719474300083,0.164195,60903.0,60902.0,0.1593]
[1719474300325,0.1642,60901.0,60900.0,0.000924]
[1719474300807,0.821002,60901.0,60900.0,0.000924]
[1719474301270,0.1642,60901.0,60900.0,0.149224]
[1719474301734,0.164198,60902.0,60900.0,0.149224]
[1719474301967,0.328391,60903.0,60900.0,0.149224]
[1719474301968,0.164195,60903.0,60900.0,0.149224]
[1719474302440,0.00084,60905.0,60900.0,0.149224]
[1719474302656,0.164193,60904.0,60900.0,0.149224]
[1719474303116,0.164193,60904.0,60900.0,0.155224]
[1719474303628,0.164193,60904.0,60900.0,0.150224]
[1719474305056,0.328385,60904.0,60900.0,0.000924]
[1719474305288,0.1642,60901.0,60900.0,0.001924]
[1719474305552,0.1642,60901.0,60897.0,0.1536]
[1719474305553,0.1642,60901.0,60897.0,0.09032271]
[1719474306751,0.1642,60901.0,60900.0,0.004]
[1719474307821,0.1642,60901.0,60897.0,0.09532271]
[1719474308466,0.1642,60901.0,60897.0,0.09032271]
[1719474308680,0.45157797,60903.0,60897.0,0.09032271]
[1719474308681,0.164207,60899.0,60897.0,0.09032271]
[1719474309108,0.328392,60903.0,60895.0,0.0701]
[1719474309109,0.12318597,60903.0,60895.0,0.0701]
[1719474309315,0.12318597,60903.0,60894.0,0.02]
[1719474309316,0.12318597,60903.0,60898.0,0.1483]
[1719474309542,0.164193,60904.0,60900.0,0.229501]
[1719474309543,0.12320502,60904.0,60900.0,0.229501]
[1719474309794,0.00084,60905.0,60904.0,0.1797]
[1719474310024,0.00084,60905.0,60904.0,0.83461598]
[1719474310246,0.00084,60905.0,60904.0,0.85761598]
[1719474311335,0.00184,60905.0,60904.0,0.85761598]
[1719474311758,0.00084,60905.0,60904.0,0.85761598]
[1719474312631,0.06075947,60916.0,60904.0,0.63152398]
[1719474312871,0.328337,60913.0,60904.0,0.17233898]
[1719474313307,0.164173,60912.0,60904.0,0.17233898]
[1719474313534,0.164173,60912.0,60905.0,0.156]
[1719474315885,0.164177,60910.0,60905.0,0.156]
[1719474316095,0.0369,60909.0,60900.0,0.0684]
[1719474316308,0.0369,60909.0,60891.0,0.020924]
[1719474316309,0.164206,60899.0,60895.0,0.0684]
[1719474318919,0.164206,60899.0,60895.0,0.0694]
[1719474319595,0.164206,60899.0,60895.0,0.0684]
[1719474319800,0.164203,60901.0,60895.0,0.0704]
[1719474320035,0.164203,60900.0,60895.0,0.0704]
[1719474320489,0.1642,60901.0,60895.0,0.0704]
[1719474320873,0.1642,60901.0,60895.0,0.0684]
[1719474321755,0.1642,60901.0,60895.0,0.0704]
[1719474322176,0.12318556,60905.0,60899.0,0.154]
[1719474322376,0.328369,60907.0,60899.0,0.31633898]
[1719474322612,0.328375,60906.0,60899.0,0.31633898]
[1719474322829,0.164194,60904.0,60899.0,0.31633898]
[1719474323681,0.002,60905.0,60899.0,0.31633898]
[1719474324313,0.164189,60906.0,60899.0,0.31633898]
[1719474324521,0.164189,60906.0,60899.0,0.31833898]
[1719474324958,0.166185,60907.0,60899.0,0.41114398]
[1719474325174,0.166185,60907.0,60900.0,0.0689]
[1719474325353,0.164188,60906.0,60900.0,0.0689]
[1719474326141,0.164188,60906.0,60901.0,0.089]
[1719474327554,0.164188,60906.0,60901.0,0.09]
[1719474328179,0.28736929,60908.0,60901.0,0.09]
[1719474328509,0.28736929,60908.0,60902.0,0.0661]
[1719474328721,0.28736929,60908.0,60904.0,0.164191]
[1719474328722,0.12318529,60908.0,60904.0,0.164191]
[1719474328947,0.12318529,60912.0,60905.0,0.1511]
[1719474329168,0.45152429,60913.0,60905.0,0.1511]
[1719474329604,0.002,60908.0,60905.0,0.1511]
[1719474329812,0.004,60908.0,60905.0,0.1511]
[1719474330027,0.002,60908.0,60905.0,0.1511]
[1719474330458,0.45151421,60913.0,60905.0,0.1521]
[1719474330459,0.164174,60911.0,60905.0,0.1521]
[1719474330664,0.62048663,60913.0,60905.0,0.1531]
[1719474330876,0.164175,60911.0,60905.0,0.1531]
[1719474331055,0.164172,60912.0,60905.0,0.1521]
[1719474331292,0.164172,60912.0,60905.0,0.316289]
[1719474331628,0.164172,60912.0,60905.0,0.315289]
[1719474332030,0.164172,60912.0,60905.0,0.317289]
[1719474332346,0.164172,60912.0,60905.0,0.320289]
[1719474332552,0.164172,60912.0,60905.0,0.318289]
[1719474332752,0.164172,60912.0,60905.0,0.315289]
[1719474332968,0.164172,60912.0,60905.0,0.316289]
[1719474334362,0.164172,60912.0,60905.0,0.1521]
[1719474337275,0.164172,60912.0,60905.0,0.1511]
[1719474337499,0.164172,60912.0,60906.0,0.1579]
[1719474337712,0.002,60912.0,60907.0,0.0934]
[1719474337927,0.002,60912.0,60910.0,0.0934]
[1719474338751,0.12316106,60915.0,60910.0,0.0934]
[1719474338960,0.003,60912.0,60910.0,0.0934]
[1719474339253,0.005,60912.0,60911.0,0.0682]
[1719474339465,0.002,60912.0,60911.0,0.0682]
[1719474339675,0.12315695,60915.0,60911.0,0.0682]
[1719474340094,0.12515695,60915.0,60911.0,0.0682]
[1719474340527,0.12315695,60915.0,60911.0,0.0682]
[1719474340947,0.12315695,60915.0,60911.0,0.0692]
[1719474342283,0.12315695,60915.0,60911.0,0.0682]
[1719474342553,0.12615695,60915.0,60911.0,0.0682]
[1719474342773,0.00732367,60915.0,60911.0,0.0682]
[1719474343023,0.17348867,60915.0,60911.0,0.0682]
[1719474343248,0.164166,60914.0,60911.0,0.0682]
[1719474343732,0.0403,60913.0,60906.0,0.164184]
[1719474343963,0.0403,60913.0,60907.0,0.16233898]
[1719474344444,0.164168,60913.0,60907.0,0.16233898]
[1719474344906,0.16419,60905.0,60897.0,0.231611]
[1719474345136,0.0403,60908.0,60894.0,0.0934]
[1719474345137,0.164203,60900.0,60894.0,0.0934]
[1719474345373,0.164203,60900.0,60899.0,0.068324]
[1719474345828,0.1642,60902.0,60899.0,0.068324]
[1719474346034,0.328392,60903.0,60899.0,0.068324]
[1719474346035,0.164201,60901.0,60899.0,0.068324]
[1719474346471,0.164201,60901.0,60899.0,0.096324]
[1719474346905,0.164201,60901.0,60899.0,0.082324]
[1719474347542,0.164201,60901.0,60899.0,0.068324]
[1719474348302,0.32836,60909.0,60899.0,0.000924]
[1719474348526,0.164185,60907.0,60900.0,0.2516]
[1719474349466,0.164187,60906.0,60900.0,0.2516]
[1719474350217,0.12315392,60910.0,60900.0,0.2576]
[1719474350459,0.28732892,60911.0,60904.0,0.1535]
[1719474350919,0.164175,60911.0,60904.0,0.1535]
[1719474352194,0.164175,60911.0,60904.0,0.2469]
[1719474352862,0.164175,60911.0,60904.0,0.1545]
[1719474353074,0.164175,60911.0,60904.0,0.2499]
[1719474354797,0.28731692,60914.0,60906.0,0.164186]
[1719474355007,0.12315092,60914.0,60907.0,0.257583]
[1719474355219,0.164163,60915.0,60907.0,0.257583]
[1719474355661,0.164163,60915.0,60910.0,0.0934]
[1719474356095,0.002,60914.0,60910.0,0.0934]
[1719474356514,0.20338372,60916.0,60910.0,0.0934]
[1719474356722,0.03922372,60916.0,60910.0,0.0934]
[1719474356956,0.002,60915.0,60911.0,0.0715]
[1719474357390,0.03922372,60916.0,60911.0,0.0715]
[1719474358998,0.04122372,60916.0,60911.0,0.0715]
[1719474359447,0.03922372,60916.0,60911.0,0.0715]
[1719474359671,0.04122372,60916.0,60911.0,0.0715]
[1719474362141,0.04122372,60916.0,60914.0,0.0696]
[1719474363374,0.03922372,60916.0,60914.0,0.0696]
[1719474363818,0.04122372,60916.0,60914.0,0.0696]
[1719474364699,0.00284,60916.0,60915.0,0.656289]
[1719474366068,0.00084,60916.0,60915.0,0.656289]
[1719474366700,0.00084,60916.0,60915.0,0.666289]
[1719474367408,0.00084,60916.0,60915.0,0.675289]
[1719474368290,0.00084,60916.0,60915.0,0.346963]
[1719474368981,0.00084,60916.0,60915.0,0.675289]
[1719474372628,5.00084,60916.0,60915.0,0.675289]
[1719474373602,5.00084,60916.0,60915.0,1.53727998]
[1719474374566,5.00084,60916.0,60915.0,1.52727998]
[1719474374782,5.00084,60916.0,60915.0,1.53727998]
[1719474375446,5.00084,60916.0,60915.0,1.52827998]
[1719474375865,5.00084,60916.0,60915.0,1.53727998]
[1719474376071,5.00084,60916.0,60915.0,1.73727998]
[1719474376295,5.00084,60916.0,60915.0,1.72827998]
[1719474376716,5.00084,60916.0,60915.0,1.73227998]
[1719474377813,5.00084,60916.0,60915.0,1.53227998]
[1719474378252,5.00084,60916.0,60915.0,1.74627998]
[1719474378897,5.00084,60916.0,60915.0,1.94627998]
[1719474379311,4.92664,60916.0,60915.0,2.47460598]
[1719474379524,4.92664,60916.0,60915.0,2.57460598]
[1719474380206,4.92664,60916.0,60915.0,2.56060598]
[1719474381054,4.92664,60916.0,60915.0,2.57460598]
[1719474381854,4.92664,60916.0,60915.0,2.65947598]
[1719474382068,4.92664,60916.0,60915.0,2.67347598]
[1719474385481,4.92664,60916.0,60915.0,1.49495398]
[1719474385686,4.92664,60916.0,60915.0,1.58835398]
[1719474386758,4.92664,60916.0,60915.0,1.61135398]
[1719474387189,4.92664,60916.0,60915.0,1.00282798]
[1719474387398,4.92664,60916.0,60915.0,1.09622798]
[1719474388072,4.92664,60916.0,60915.0,1.06822798]
[1719474388498,4.92664,60916.0,60915.0,1.10522798]
[1719474388700,4.92664,60916.0,60915.0,0.19933898]
[1719474389425,4.92664,60916.0,60915.0,0.18533898]
[1719474389844,4.92664,60916.0,60915.0,0.29273898]
[1719474390502,4.92664,60916.0,60915.0,0.19933898]
[1719474390719,4.92664,60916.0,60915.0,0.29273898]
[1719474390924,4.98644,60916.0,60915.0,0.028]
[1719474391146,0.164172,60912.0,60905.0,0.1]
[1719474391355,0.164172,60912.0,60906.0,0.35573898]
[1719474391562,0.328334,60914.0,60909.0,0.0934]
[1719474391762,0.328334,60914.0,60910.0,0.16233898]
[1719474392180,0.164169,60913.0,60910.0,0.16233898]
[1719474392385,0.328337,60913.0,60905.0,0.006]
[1719474392595,0.164174,60911.0,60908.0,0.0934]
[1719474392847,0.328342,60912.0,60906.0,0.023]
[1719474393063,0.164181,60909.0,60906.0,0.16233898]
[1719474393275,0.164181,60909.0,60906.0,0.25573898]
[1719474394404,0.164181,60909.0,60906.0,0.26373898]
[1719474394604,0.164181,60909.0,60906.0,0.16233898]
[1719474395028,0.164181,60909.0,60906.0,0.17433898]
[1719474395490,0.164181,60909.0,60906.0,0.18033898]
[1719474395913,0.164181,60909.0,60906.0,0.17433898]
[1719474396135,0.164181,60909.0,60906.0,0.18433898]
[1719474397194,0.328359,60909.0,60906.0,0.022]
[1719474397402,0.492553,60907.0,60906.0,0.022]
[1719474397636,0.880722,60907.0,60906.0,0.022]
[1719474398301,0.880722,60907.0,60906.0,0.01]
[1719474398714,0.880722,60907.0,60906.0,0.024]
[1719474398925,0.880722,60907.0,60906.0,0.014]
[1719474399408,0.880722,60907.0,60906.0,0.026]
[1719474399978,0.926022,60907.0,60906.0,0.026]
[1719474401202,0.96422086,60907.0,60906.0,0.026]
[1719474405708,0.98422086,60907.0,60906.0,0.026]
[1719474405914,0.96422086,60907.0,60906.0,0.026]
[1719474406128,0.96422086,60907.0,60906.0,0.014]
[1719474406553,0.96522086,60907.0,60906.0,0.014]
[1719474406986,0.82095,60905.0,60904.0,0.000924]
[1719474408363,0.82095,60905.0,60904.0,0.001924]
[1719474410006,0.328354,60910.0,60904.0,0.001924]
[1719474410555,0.164187,60906.0,60905.0,0.0934]
[1719474412461,0.328361,60909.0,60905.0,0.0934]
[1719474412664,0.001,60906.0,60905.0,0.0934]
[1719474413099,0.001,60906.0,60904.0,0.000924]
[1719474413327,0.164185,60907.0,60904.0,0.094324]
[1719474413544,0.164185,60907.0,60905.0,0.001]
[1719474413928,0.164185,60907.0,60905.0,0.003]
[1719474414290,0.492542,60909.0,60905.0,0.001]
[1719474414501,0.164172,60912.0,60905.0,0.001]
[1719474414723,0.164177,60910.0,60905.0,0.001]
[1719474414876,0.164177,60910.0,60904.0,0.094324]
[1719474415311,0.328344,60912.0,60904.0,0.094324]
[1719474415312,0.164179,60909.0,60904.0,0.094324]
[1719474415547,0.02,60912.0,60904.0,0.000924]
[1719474415746,0.49257,60905.0,60904.0,0.000924]
[1719474415981,0.93015,60905.0,60904.0,0.000924]
[1719474417722,0.93015,60905.0,60904.0,0.001924]
[1719474420267,0.95015,60905.0,60904.0,0.001924]
[1719474420776,1.27853,60905.0,60904.0,0.001924]
[1719474423252,1.76924898,60905.0,60904.0,0.001924]
[1719474423468,2.06924898,60905.0,60904.0,0.001924]
[1719474423675,2.06924898,60905.0,60904.0,0.000924]
[1719474424102,2.75217927,60905.0,60904.0,0.000924]
[1719474424298,2.62956054,60905.0,60904.0,0.000924]
[1719474424505,2.75017927,60905.0,60904.0,0.000924]
[1719474424731,2.84222733,60905.0,60904.0,0.001924]
[1719474424957,2.86489001,60905.0,60904.0,0.001924]
[1719474425187,2.86289001,60905.0,60904.0,0.000924]
[1719474425401,3.07269145,60905.0,60904.0,0.000924]
[1719474425648,3.07269145,60905.0,60904.0,7.6e-05]
[1719474425649,3.78606444,60905.0,60904.0,7.6e-05]
[1719474425858,3.78606444,60905.0,60891.0,0.000924]
[1719474425859,0.22,60892.0,60891.0,7.6e-05]
[1719474426078,1.45326398,60892.0,60891.0,7.6e-05]
[1719474426286,2.21016398,60892.0,60891.0,0.00767873]
[1719474426491,2.21016398,60892.0,60891.0,7.6e-05]
[1719474426735,2.40079706,60892.0,60891.0,7.6e-05]
[1719474427146,0.16428,60872.0,60870.0,0.0709]
[1719474427363,0.164278,60873.0,60871.0,0.00760358]
[1719474427572,0.492837,60872.0,60871.0,0.00760358]
[1719474427786,0.492837,60872.0,60871.0,0.1569]
[1719474428630,0.821395,60872.0,60871.0,0.1569]
[1719474428837,0.821395,60872.0,60871.0,0.16450358]
[1719474429141,0.492837,60872.0,60871.0,0.1569]
[1719474429347,0.492837,60872.0,60871.0,0.1709]
[1719474429575,0.492837,60872.0,60871.0,0.17850358]
[1719474430256,0.492837,60872.0,60871.0,0.19250358]
[1719474430678,0.492837,60872.0,60871.0,0.1849]
[1719474433105,0.492837,60872.0,60871.0,0.028]
[1719474433526,0.821395,60872.0,60871.0,0.014]
[1719474433740,1.169953,60872.0,60871.0,0.014]
[1719474433940,1.169953,60872.0,60871.0,0.024]
[1719474433941,1.41126627,60872.0,60871.0,0.024]
[1719474434140,1.284353,60872.0,60871.0,0.024]
[1719474434362,1.284353,60872.0,60871.0,0.01]
[1719474434551,1.284353,60872.0,60871.0,0.022]
[1719474434978,1.264353,60872.0,60871.0,0.01]
[1719474435308,0.164299,60865.0,60862.0,0.000924]
[1719474435714,0.164299,60865.0,60863.0,0.00760392]
[1719474436562,0.164295,60867.0,60863.0,0.00760392]
[1719474436772,0.164295,60867.0,60864.0,0.1668]
[1719474437000,0.164295,60867.0,60865.0,0.00779078]
[1719474439567,0.165295,60867.0,60865.0,0.00779078]
[1719474440225,0.001,60867.0,60865.0,0.00779078]
[1719474441070,0.001,60867.0,60864.0,0.1668]
[1719474441485,0.001,60867.0,60865.0,0.0078073]
[1719474442160,0.16429,60868.0,60865.0,0.0078073]
[1719474442373,0.001,60867.0,60865.0,0.0078073]
[1719474442818,0.16429,60868.0,60865.0,0.0078073]
[1719474443969,0.001,60867.0,60865.0,0.0078073]
[1719474444445,0.328569,60870.0,60865.0,0.0078073]
[1719474445012,0.001,60868.0,60865.0,0.0078073]
[1719474445253,0.328569,60870.0,60865.0,0.0078073]
[1719474445678,0.002,60868.0,60865.0,0.0078073]
[1719474446318,0.164295,60866.0,60865.0,0.0078073]
[1719474446527,0.328576,60869.0,60862.0,0.000924]
[1719474446528,0.164293,60867.0,60862.0,0.000924]
[1719474446737,0.164293,60867.0,60863.0,0.1574]
[1719474448507,0.19005551,60867.0,60863.0,0.1574]
[1719474448871,0.164295,60866.0,60863.0,0.1574]
[1719474451109,0.164295,60866.0,60863.0,0.1584]
[1719474454559,0.1643,60864.0,60863.0,0.1584]
[1719474455453,0.164298,60865.0,60863.0,0.1584]
[1719474455834,0.164298,60865.0,60863.0,0.1604]
[1719474456454,0.164298,60865.0,60863.0,0.1574]
[1719474456853,0.164298,60865.0,60863.0,0.1584]
[1719474457880,0.164298,60865.0,60863.0,0.1624]
[1719474458282,0.164298,60865.0,60863.0,0.1584]
[1719474458634,0.164298,60865.0,60863.0,0.1604]
[1719474458838,0.1643,60864.0,60863.0,0.1604]
[1719474459419,0.492901,60864.0,60863.0,0.003]
[1719474459632,0.492901,60864.0,60863.0,0.002]
[1719474460034,0.492901,60864.0,60863.0,0.005]
[1719474460906,0.492901,60864.0,60863.0,0.003]
[1719474461331,0.492901,60864.0,60863.0,0.007]
[1719474461534,0.821502,60864.0,60863.0,0.007]
[1719474461741,0.898402,60864.0,60863.0,0.007]
[1719474465744,1.57313093,60864.0,60863.0,0.007]
[1719474465944,1.67313093,60864.0,60863.0,0.007]
[1719474467281,1.67313093,60864.0,60862.0,0.000924]
[1719474467282,1.170121,60863.0,60862.0,0.000924]
[1719474467487,1.270121,60863.0,60862.0,0.000924]
[1719474467687,1.31757423,60863.0,60862.0,0.000924]
[1719474469764,1.31957423,60863.0,60862.0,0.000924]
[1719474470597,1.32257423,60863.0,60862.0,0.000924]
[1719474477776,1.41607423,60863.0,60862.0,0.000924]
[1719474479089,1.348621,60863.0,60862.0,0.000924]
[1719474480371,0.269303,60863.0,60862.0,0.000924]
[1719474480531,0.269303,60863.0,60862.0,0.156424]
[1719474480730,0.597909,60863.0,60862.0,0.156424]
[1719474481145,1.382221,60863.0,60862.0,0.000924]
[1719474481366,1.74155998,60863.0,60862.0,0.000924]
[1719474481757,1.63305998,60863.0,60862.0,0.000924]
[1719474481956,1.78385212,60863.0,60862.0,0.000924]
[1719474482159,1.63505998,60863.0,60862.0,0.000924]
[1719474482723,1.63405998,60863.0,60862.0,0.000924]
[1719474482933,1.63605998,60863.0,60862.0,0.001924]
[1719474483560,1.170142,60862.0,60861.0,0.009218]
[1719474483794,1.43248098,60862.0,60861.0,0.009218]
[1719474484818,1.52598098,60862.0,60861.0,0.009218]
[1719474485024,1.43248098,60862.0,60861.0,0.009218]
[1719474485241,1.53198098,60862.0,60861.0,0.010218]
[1719474485651,1.43848098,60862.0,60861.0,0.010218]
[1719474485859,1.53198098,60862.0,60861.0,0.010218]
[1719474486694,1.66925191,60862.0,60861.0,0.011218]
[1719474486897,1.86925191,60862.0,60861.0,0.011218]
[1719474489258,0.841625,60855.0,60854.0,0.009218]
[1719474489471,1.363775,60855.0,60854.0,0.009218]
[1719474489697,1.470875,60855.0,60854.0,0.009218]
[1719474491164,1.470875,60855.0,60854.0,0.011218]
[1719474491607,1.475875,60855.0,60854.0,0.011218]
[1719474492013,1.63821398,60855.0,60854.0,0.011218]
[1719474492427,1.63821398,60855.0,60854.0,0.009218]
[1719474492875,1.71562042,60855.0,60854.0,0.010218]
[1719474497614,1.69562042,60855.0,60854.0,0.010218]
[1719474497852,1.71562042,60855.0,60854.0,0.010218]
[1719474498081,1.62212042,60855.0,60854.0,0.010218]
[1719474498331,1.53711398,60855.0,60854.0,0.010218]
[1719474499774,1.53711398,60855.0,60854.0,0.163618]
[1719474499775,0.932625,60855.0,60854.0,0.163618]
[1719474501749,0.96514748,60855.0,60854.0,0.163618]
[1719474501954,0.98514748,60855.0,60854.0,0.163618]
[1719474502611,0.82082248,60855.0,60854.0,0.163618]
[1719474502805,1.31379748,60855.0,60854.0,0.010218]
[1719474503226,1.62394599,60855.0,60854.0,0.010218]
[1719474503444,1.67034599,60855.0,60854.0,0.010218]
[1719474504289,1.52253646,60855.0,60854.0,0.010218]
[1719474504504,1.72253646,60855.0,60854.0,0.010218]
[1719474504705,1.81603646,60855.0,60854.0,0.010218]
[1719474505167,1.96385147,60855.0,60854.0,0.010218]
[1719474505495,1.76963646,60855.0,60854.0,0.010218]
[1719474505911,1.77837017,60855.0,60854.0,0.010218]
[1719474506107,1.170348,60851.0,60850.0,1.618959]
[1719474506313,1.42618698,60851.0,60850.0,1.618959]
[1719474507746,1.52618698,60851.0,60850.0,1.618959]
[1719474507952,1.67400923,60851.0,60850.0,1.618959]
[1719474508168,1.52618698,60851.0,60850.0,1.618959]
[1719474508978,1.67403617,60851.0,60850.0,1.618959]
[1719474512218,1.67401647,60851.0,60850.0,1.618959]
[1719474513105,1.43268698,60851.0,60850.0,1.781759]
[1719474513312,1.52618698,60851.0,60850.0,1.781759]
[1719474513719,1.50618698,60851.0,60850.0,1.781759]
[1719474513918,1.52618698,60851.0,60850.0,1.781759]
[1719474523927,1.50618698,60851.0,60850.0,1.781759]
[1719474524489,1.52618698,60851.0,60850.0,1.781759]
[1719474527221,1.50618698,60851.0,60850.0,1.781759]
[1719474527423,1.08401598,60851.0,60850.0,1.781759]
[1719474527628,1.17751598,60851.0,60850.0,1.781759]
[1719474531326,1.32551399,60851.0,60850.0,1.781759]
[1719474531534,1.32556201,60851.0,60850.0,1.781759]
[1719474533623,1.34556201,60851.0,60850.0,1.781759]
[1719474533828,1.10401598,60851.0,60850.0,1.781759]
[1719474534261,1.17751598,60851.0,60850.0,1.781759]
[1719474535558,1.32559739,60851.0,60850.0,1.781759]
[1719474535996,1.32559686,60851.0,60850.0,1.781759]
[1719474536946,0.24808088,60851.0,60850.0,1.618959]
[1719474537149,0.329496,60854.0,60850.0,1.618959]
[1719474537150,0.00084,60854.0,60850.0,1.618959]
[1719474537422,0.00084,60854.0,60851.0,0.1629]
[1719474537650,0.00084,60854.0,60852.0,0.1629]
[1719474537850,0.00084,60854.0,60853.0,0.1629]
[1719474538475,0.00484,60854.0,60853.0,0.1629]
[1719474538680,0.00784,60854.0,60853.0,0.1629]
[1719474539672,0.00384,60854.0,60853.0,0.1629]
[1719474539879,0.00784,60854.0,60853.0,0.1629]
[1719474540090,0.00484,60854.0,60853.0,0.1629]
[1719474540283,0.169167,60854.0,60853.0,0.1629]
[1719474540521,0.184335,60851.0,60850.0,1.618959]
[1719474540730,0.76884498,60851.0,60850.0,1.618959]
[1719474540931,1.34556297,60851.0,60850.0,1.618959]
[1719474541133,1.19751598,60851.0,60850.0,1.618959]
[1719474541957,1.34553389,60851.0,60850.0,1.618959]
[1719474542159,1.67420489,60851.0,60850.0,1.618959]
[1719474542360,1.52618698,60851.0,60850.0,1.618959]
[1719474542573,1.52618698,60851.0,60850.0,1.619959]
[1719474542777,1.53718698,60851.0,60850.0,1.619959]
[1719474543407,1.56296063,60851.0,60850.0,1.619959]
[1719474543758,1.57296063,60851.0,60850.0,1.620959]
[1719474543963,1.73529434,60851.0,60850.0,1.572959]
[1719474544199,1.84759434,60851.0,60850.0,1.572959]
[1719474544793,1.75409434,60851.0,60850.0,1.572959]
[1719474544994,1.84759434,60851.0,60850.0,1.525959]
[1719474546352,1.84759434,60851.0,60850.0,1.504959]
[1719474546584,1.84759434,60851.0,60850.0,1.477959]
[1719474546813,2.04759434,60851.0,60850.0,1.408959]
[1719474547767,2.57626534,60851.0,60850.0,1.408959]
[1719474547974,2.24759434,60851.0,60850.0,1.408959]
[1719474548601,2.57626534,60851.0,60850.0,1.408959]
[1719474549009,2.24759434,60851.0,60850.0,1.408959]
[1719474549614,2.24759434,60851.0,60850.0,1.361959]
[1719474549814,2.57626534,60851.0,60850.0,1.361959]
[1719474550191,2.04759434,60851.0,60850.0,1.361959]
[1719474550389,2.24759434,60851.0,60850.0,1.361959]
[1719474551020,2.04759434,60851.0,60850.0,1.361959]
[1719474551758,2.24759434,60851.0,60850.0,1.361959]
[1719474551914,2.27730471,60851.0,60850.0,1.361959]
[1719474552096,2.60597571,60851.0,60850.0,1.361959]
[1719474552466,2.27730471,60851.0,60850.0,1.361959]
[1719474552672,2.60597571,60851.0,60850.0,1.361959]
[1719474554018,1.98380471,60851.0,60850.0,1.361959]
[1719474554221,2.27730471,60851.0,60850.0,1.361959]
[1719474554648,2.60597571,60851.0,60850.0,1.361959]
[1719474555915,2.65258377,60851.0,60850.0,1.361959]
[1719474556532,2.85258204,60851.0,60850.0,1.029459]
[1719474557044,2.65258204,60851.0,60850.0,1.029459]
[1719474557544,2.32391104,60851.0,60850.0,1.029459]
[1719474557957,2.60597571,60851.0,60850.0,0.998569]
[1719474558368,2.80597571,60851.0,60850.0,0.908569]
[1719474558782,2.60597571,60851.0,60850.0,0.908569]
[1719474559321,2.80597571,60851.0,60850.0,0.809569]
[1719474559531,2.85423796,60851.0,60850.0,0.685569]
[1719474559739,2.85423796,60851.0,60850.0,0.65681]
[1719474559938,2.86789877,60851.0,60850.0,0.65681]
[1719474560663,2.84689877,60851.0,60850.0,0.65481]
[1719474560863,2.87489877,60851.0,60850.0,0.65681]
[1719474562451,3.04809877,60851.0,60850.0,0.487036]
[1719474563212,3.05489279,60851.0,60850.0,0.487036]
[1719474564014,2.98617571,60851.0,60850.0,0.487036]
[1719474564219,3.05486221,60851.0,60850.0,0.487036]
[1719474565250,2.98617571,60851.0,60850.0,0.487036]
[1719474565455,3.05489946,60851.0,60850.0,0.487036]
[1719474566213,3.05489946,60851.0,60850.0,0.439436]
[1719474566372,3.05489946,60851.0,60850.0,0.427436]
[1719474567387,3.05489946,60851.0,60850.0,0.302436]
[1719474567989,3.05489946,60851.0,60850.0,0.161196]
[1719474568265,3.45323746,60851.0,60850.0,0.161196]
[1719474568632,3.19211279,60851.0,60850.0,0.161196]
[1719474568821,3.35644779,60851.0,60850.0,0.161196]
[1719474569024,3.35635267,60851.0,60850.0,0.161196]
[1719474569829,3.35635267,60851.0,60850.0,0.126196]
[1719474570241,3.35635267,60851.0,60850.0,0.125196]
[1719474570242,3.34235267,60851.0,60850.0,0.125196]
[1719474570626,3.35635267,60851.0,60850.0,0.125196]
[1719474570853,3.35635267,60851.0,60850.0,0.124196]
[1719474571057,3.03144467,60851.0,60850.0,0.124196]
[1719474571258,2.90194467,60851.0,60850.0,0.124196]
[1719474571525,2.99544467,60851.0,60850.0,0.124196]
[1719474571699,3.00944467,60851.0,60850.0,0.124196]
[1719474572063,2.99544467,60851.0,60850.0,0.124196]
[1719474572274,2.9953604,60851.0,60850.0,0.124196]
[1719474572486,2.6361604,60851.0,60850.0,0.124196]
[1719474572689,2.31038604,60851.0,60850.0,0.124196]
[1719474572898,2.47242681,60851.0,60850.0,0.124196]
[1719474573792,2.45842681,60851.0,60850.0,0.124196]
[1719474574712,2.44442681,60851.0,60850.0,0.124196]
[1719474574943,2.45842681,60851.0,60850.0,0.124196]
[1719474575151,2.47242681,60851.0,60850.0,0.124196]
[1719474575366,2.45842681,60851.0,60850.0,0.124196]
[1719474575577,2.45864458,60851.0,60850.0,0.124196]
[1719474575788,2.47264458,60851.0,60850.0,0.124196]
[1719474577097,2.44464458,60851.0,60850.0,0.124196]
[1719474577287,2.45864458,60851.0,60850.0,0.124196]
[1719474577530,2.47264458,60851.0,60850.0,0.124196]
[1719474577752,2.44420331,60851.0,60850.0,0.124196]
[1719474577967,2.35070331,60851.0,60850.0,0.124196]
[1719474578174,2.05003231,60851.0,60850.0,0.124196]
[1719474578411,1.94353231,60851.0,60850.0,0.124196]
[1719474578639,1.41522027,60851.0,60850.0,0.304896]
[1719474578867,1.40063192,60851.0,60850.0,0.304896]
[1719474579505,1.72040677,60851.0,60850.0,0.304896]
[1719474579933,1.39173577,60851.0,60850.0,0.304896]
[1719474580145,1.32271678,60851.0,60850.0,0.304896]
[1719474580350,1.33671678,60851.0,60850.0,0.304896]
[1719474580730,1.32271678,60851.0,60850.0,0.304896]
[1719474581138,1.33471678,60851.0,60850.0,0.304896]
[1719474581301,1.32071678,60851.0,60850.0,0.304896]
[1719474581501,1.22721678,60851.0,60850.0,0.304896]
[1719474581697,1.32007302,60851.0,60850.0,0.304896]
[1719474581927,1.33372968,60851.0,60850.0,0.304896]
[1719474582287,1.49605867,60851.0,60850.0,0.304896]
[1719474583143,1.49607236,60851.0,60850.0,0.304896]
[1719474583344,1.34830532,60851.0,60850.0,0.304896]
[1719474584644,0.94298116,60851.0,60850.0,0.304896]
[1719474585119,0.94298074,60851.0,60850.0,0.304896]
[1719474585948,0.45197603,60851.0,60850.0,0.304896]
[1719474586221,0.23126826,60851.0,60850.0,0.304896]
[1719474586710,0.30210326,60851.0,60850.0,0.304896]